bitfinex-derivatives/quotes_ETHF0:USTF0_20241228
["timestamp","ask_amount","ask_price","bid_price","bid_amount"]
[1735364803297,0.4409,3358.8,3358.4,3.2078]
[1735364803505,2.30047554,3358.9,3358.7,0.29819]
[1735364804106,2.00229554,3358.9,3358.4,3.2078]
[1735364804406,0.29819,3358.8,3358.5,0.29821]
[1735364805100,0.29819,3358.8,3358.4,3.2078]
[1735364805308,0.29819,3358.8,3358.6,0.2982]
[1735364806000,2.00229554,3358.9,3358.4,3.2078]
[1735364806305,0.29819,3358.7,3358.5,0.2982]
[1735364806896,0.29819,3358.7,3358.5,0.29821]
[1735364808101,0.29821,3358.5,3358.4,3.2078]
[1735364809310,0.29819,3358.7,3358.5,0.29821]
[1735364809502,0.29819,3358.7,3358.4,3.50601]
[1735364810005,0.29821,3358.6,3358.4,3.50601]
[1735364811007,2.00229554,3358.9,3358.4,3.2078]
[1735364811410,0.29821,3358.5,3358.4,3.2078]
[1735364813009,0.29821,3358.5,3358.0,6.98400744]
[1735364813010,0.29824,3358.1,3358.0,6.98400744]
[1735364813611,0.29825,3358.0,3357.9,0.426]
[1735364813804,0.29827,3357.9,3357.7,0.29827]
[1735364814513,2.12115,3358.4,3357.6,10.19180744]
[1735364814710,2.12115,3358.4,3357.6,3.2078]
[1735364814905,0.29827,3357.9,3357.6,3.2078]
[1735364815111,0.29827,3357.9,3357.6,3.50608]
[1735364815314,2.12115,3358.4,3357.6,3.50608]
[1735364815518,0.29828,3357.8,3357.6,3.50608]
[1735364816009,2.12115,3358.4,3357.6,3.2078]
[1735364816217,0.29828,3357.7,3357.6,3.2078]
[1735364816509,0.29828,3357.8,3357.6,3.2078]
[1735364816916,0.29828,3357.8,3357.6,3.50609]
[1735364817118,3.2078,3358.5,3357.6,4.78317366]
[1735364817307,3.50601,3358.5,3358.3,0.29822]
[1735364817505,0.2982,3358.6,3358.4,0.4314]
[1735364817705,2.44677366,3359.1,3358.4,0.4314]
[1735364818010,0.29821,3358.6,3358.4,0.4314]
[1735364818211,0.29821,3358.6,3358.5,3.2078]
[1735364822114,0.74542,3359.0,3358.4,0.4314]
[1735364822315,0.29821,3358.5,3358.4,3.6392]
[1735364822608,0.29821,3358.5,3358.4,3.2078]
[1735364826520,0.29823,3358.3,3358.2,6.98400744]
[1735364826719,0.74551,3358.7,3358.1,6.98400744]
[1735364826919,0.29824,3358.2,3358.1,6.98400744]
[1735364827921,0.29824,3358.2,3358.1,6.83131074]
[1735364828814,0.29824,3358.1,3358.0,3.2078]
[1735364829819,0.29824,3358.1,3358.0,10.03959108]
[1735364830520,0.29824,3358.2,3358.0,10.03959108]
[1735364830719,0.4251,3358.3,3358.0,17.02359852]
[1735364830920,0.29824,3358.1,3358.0,17.02359852]
[1735364831913,0.29824,3358.2,3358.0,17.02359852]
[1735364832518,2.29824,3358.2,3358.0,17.02359852]
[1735364832717,2.29824,3358.2,3358.1,6.83179108]
[1735364833519,2.29824,3358.2,3358.1,13.81579852]
[1735364834223,2.0,3358.2,3358.1,13.81579852]
[1735364834720,2.29824,3358.2,3358.1,13.81579852]
[1735364835320,2.0,3358.2,3358.1,13.81579852]
[1735364835915,2.29824,3358.2,3358.1,13.81579852]
[1735364836116,2.0,3358.2,3358.1,13.81579852]
[1735364838519,2.0,3358.2,3358.1,17.02359852]
[1735364838925,4.0,3358.2,3358.1,17.02359852]
[1735364839816,4.29824,3358.2,3358.1,17.02359852]
[1735364840016,4.0,3358.2,3358.1,17.02359852]
[1735364841013,4.0,3358.2,3358.1,17.32183852]
[1735364841725,4.0,3358.2,3358.1,17.02359852]
[1735364841926,4.29824,3358.2,3358.1,17.02359852]
[1735364842118,4.0,3358.2,3358.1,17.32183852]
[1735364842822,4.29824,3358.2,3358.1,17.02359852]
[1735364843023,4.29824,3358.2,3358.1,10.03959108]
[1735364843320,4.29824,3358.2,3358.1,10.33783108]
[1735364843321,4.0,3358.2,3358.1,10.33783108]
[1735364844622,4.29824,3358.2,3358.1,10.03959108]
[1735364845225,4.29824,3358.2,3358.1,10.33783108]
[1735364845421,4.29824,3358.2,3358.1,6.83179108]
[1735364846617,4.0,3358.2,3357.8,7.00914279]
[1735364846822,0.29826,3357.9,3357.8,7.00914279]
[1735364847525,0.29826,3358.0,3357.8,7.30741279]
[1735364847726,0.29826,3357.9,3357.8,7.00914279]
[1735364847928,0.29826,3357.9,3357.8,6.83471337]
[1735364848827,0.29826,3357.9,3357.8,13.84385616]
[1735364849016,0.4376,3358.1,3357.8,14.14212616]
[1735364849017,0.29826,3358.0,3357.8,14.14212616]
[1735364849222,0.4376,3358.1,3357.8,13.84385616]
[1735364849421,0.29826,3357.9,3357.8,13.84385616]
[1735364849832,0.29826,3357.9,3357.8,7.00914279]
[1735364851420,0.29826,3357.9,3357.8,13.84402164]
[1735364857926,1.87363366,3357.9,3357.8,13.84402164]
[1735364858829,0.29827,3357.8,3357.7,3.2078]
[1735364862129,4.0,3358.2,3357.7,3.2078]
[1735364862336,0.29825,3358.1,3357.8,0.4552]
[1735364862738,0.29825,3358.1,3358.0,0.29825]
[1735364863037,0.29826,3357.9,3357.8,0.4552]
[1735364863438,0.29826,3357.9,3357.8,14.29887661]
[1735364864026,0.29826,3357.9,3357.8,14.59714661]
[1735364864426,4.0,3358.2,3357.8,14.59714661]
[1735364864634,0.29826,3357.9,3357.8,14.59714661]
[1735364864936,0.29826,3357.9,3357.8,7.28973382]
[1735364866737,0.29826,3357.9,3357.8,5.28973382]
[1735364869241,0.29826,3357.9,3357.8,12.29909549]
[1735364870038,0.29826,3357.9,3357.8,5.28973382]
[1735364871138,0.29826,3357.9,3357.8,12.29909549]
[1735364873437,0.29827,3357.8,3357.7,7.88256882]
[1735364873638,0.83567,3357.8,3357.7,7.88256882]
[1735364876044,0.83567,3357.8,3357.7,4.67476882]
[1735364884749,2.83567,3357.8,3357.7,4.67476882]
[1735364886940,12.61884366,3357.8,3357.7,2.37900882]
[1735364887248,11.04347,3357.8,3357.7,1.02308882]
[1735364887445,10.7452,3357.8,3357.6,6.61745049]
[1735364887642,0.74488,3357.7,3357.6,6.61745049]
[1735364887847,1.49188508,3357.7,3357.6,6.61745049]
[1735364888044,6.49188508,3357.7,3357.6,6.61745049]
[1735364888750,0.29833,3357.1,3357.0,0.5576]
[1735364888945,1.04533508,3357.1,3357.0,0.5576]
[1735364889740,0.29833,3357.1,3357.0,0.5576]
[1735364893557,0.29833,3357.2,3357.1,0.29833]
[1735364894553,0.6735,3357.6,3357.0,0.5576]
[1735364894754,0.29833,3357.1,3357.0,0.5576]
[1735364897663,0.74572,3357.7,3357.0,0.85593]
[1735364897954,0.29832,3357.2,3357.1,0.7205]
[1735364902156,0.29833,3357.1,3357.0,0.5576]
[1735364906959,3.5780323,3357.9,3357.0,0.5576]
[1735364907162,0.29831,3357.4,3357.1,3.2078]
[1735364907362,0.29829,3357.6,3357.5,0.29829]
[1735364908463,0.29829,3357.6,3357.4,0.2983]
[1735364910766,3.2078,3357.7,3357.4,0.2983]
[1735364910968,0.2983,3357.5,3357.2,0.7319]
[1735364911263,0.2983,3357.5,3357.3,0.29832]
[1735364912172,0.2983,3357.5,3357.4,6.63702038]
[1735364913365,2.1465,3357.6,3357.1,3.2078]
[1735364913557,0.29832,3357.2,3357.1,3.50613]
[1735364913764,0.2983,3357.5,3357.3,0.29831]
[1735364914165,3.95448433,3357.7,3357.3,0.29831]
[1735364914365,0.29831,3357.4,3357.3,0.29831]
[1735364915265,0.29831,3357.4,3357.3,6.93667541]
[1735364915465,3.95448433,3357.7,3357.3,6.63836541]
[1735364915667,0.2983,3357.5,3357.4,0.29831]
[1735364916570,0.2983,3357.5,3357.4,6.93667541]
[1735364916764,0.2983,3357.5,3357.4,6.63836541]
[1735364920573,0.2983,3357.5,3357.4,6.93667541]
[1735364921973,0.2983,3357.5,3357.4,6.63836541]
[1735364922869,0.29832,3357.2,3357.1,3.50613]
[1735364923874,0.29832,3357.2,3357.1,19.37203037]
[1735364924075,3.2078,3357.7,3357.1,19.07370037]
[1735364924381,0.29832,3357.3,3357.2,0.29832]
[1735364924671,0.29832,3357.3,3357.2,16.16422037]
[1735364924871,0.29832,3357.3,3357.2,15.86590037]
[1735364925468,0.29832,3357.3,3357.2,6.64198489]
[1735364927867,0.29832,3357.2,3357.1,3.2078]
[1735364934174,0.29834,3357.0,3356.9,0.6914]
[1735364934478,0.29834,3357.0,3356.9,7.33324689]
[1735364935779,1.04529565,3357.0,3356.9,7.33324689]
[1735364938570,0.29834,3357.1,3357.0,0.29834]
[1735364938971,0.29834,3357.1,3357.0,0.766]
[1735364939277,0.29834,3357.1,3357.0,7.70618689]
[1735364940378,0.29834,3357.1,3357.0,7.40784689]
[1735364940574,2.2439,3357.7,3357.0,7.40784689]
[1735364940781,0.74695565,3357.6,3357.3,0.29831]
[1735364940976,0.29831,3357.4,3357.2,0.29832]
[1735364941172,1.04526565,3357.4,3357.2,0.29832]
[1735364941579,0.74695565,3357.4,3357.3,6.64184689]
[1735364941882,1.04526565,3357.4,3357.3,6.64184689]
[1735364946687,1.04526565,3357.4,3357.1,3.2078]
[1735364946688,0.29832,3357.2,3357.1,3.2078]
[1735364946892,1.04527565,3357.2,3357.1,3.2078]
[1735364947091,0.29836,3356.8,3356.7,12.43171548]
[1735364947280,1.04531565,3356.8,3356.7,12.43171548]
[1735364947584,1.04531565,3356.8,3356.7,9.22391548]
[1735364948088,1.04531565,3356.8,3356.5,11.50223399]
[1735364948089,0.2984,3356.4,3356.3,13.14791548]
[1735364948986,0.2984,3356.4,3356.3,26.78943479]
[1735364949186,0.2984,3356.4,3356.3,17.56551931]
[1735364951088,0.2984,3356.4,3356.3,10.55843809]
[1735364952789,0.2984,3356.4,3356.3,7.35063809]
[1735364954393,0.2984,3356.4,3356.3,0.7162]
[1735364955286,1.2984,3356.4,3356.3,0.7162]
[1735364957890,0.2984,3356.3,3356.2,3.2078]
[1735364958094,1.7717,3356.3,3356.2,3.2078]
[1735364958283,3.35009403,3356.3,3356.2,3.2078]
[1735364958690,3.35009403,3356.3,3355.9,9.22391548]
[1735364958691,0.29843,3356.0,3355.9,7.00708122]
[1735364958887,1.87682403,3356.0,3355.9,7.00708122]
[1735364959893,1.87682403,3356.0,3355.4,3.2078]
[1735364959894,0.29848,3355.5,3355.4,3.2078]
[1735364961295,0.29848,3355.5,3355.4,3.50628]
[1735364964400,0.29848,3355.5,3355.4,3.2078]
[1735364966700,2.2133,3355.6,3355.2,0.7591]
[1735364966892,0.29849,3355.3,3355.2,0.7591]
[1735364967304,1.57839403,3355.4,3355.0,3.2078]
[1735364967500,0.29851,3355.1,3355.0,3.2078]
[1735364972292,1.87690403,3355.1,3355.0,3.2078]
[1735364974712,0.29856,3354.6,3354.5,3.9394]
[1735364975101,0.29856,3354.6,3354.5,3.2078]
[1735364976005,4.78619403,3354.8,3354.1,1.4739]
[1735364976206,0.29859,3354.2,3354.1,1.4739]
[1735364977606,0.29859,3354.2,3354.1,0.7645]
[1735364979310,0.2986,3354.1,3354.0,3.2078]
[1735364979510,0.2986,3354.1,3354.0,3.50641]
[1735364979709,1.489,3354.4,3354.0,3.2078]
[1735364979912,0.2986,3354.1,3354.0,3.2078]
[1735364985820,0.29864,3353.7,3353.5,0.29865]
[1735364986123,3.95427,3354.3,3353.3,1.4704]
[1735364986124,0.29866,3353.5,3353.3,1.76907]
[1735364986320,0.29865,3353.6,3353.3,1.4704]
[1735364986522,0.29865,3353.6,3353.5,0.29865]
[1735364987023,0.29865,3353.6,3353.4,0.29866]
[1735364987220,2.2017,3353.8,3353.3,1.4704]
[1735364987526,0.29866,3353.4,3353.3,1.4704]
[1735364990624,0.29865,3353.6,3353.5,0.29865]
[1735364991021,0.29865,3353.6,3353.4,0.29866]
[1735364991623,1.57839403,3353.9,3353.3,1.4704]
[1735364991825,0.29866,3353.5,3353.4,0.29866]
[1735364992427,1.57839403,3353.9,3353.5,0.29865]
[1735364992627,0.29864,3353.7,3353.5,0.29865]
[1735364992830,0.29864,3353.6,3353.4,0.29866]
[1735364993032,0.29864,3353.6,3353.3,1.4704]
[1735364993222,0.29864,3353.6,3353.4,0.29866]
[1735364994125,1.57839403,3353.9,3353.3,1.4704]
[1735364994324,0.29865,3353.6,3353.4,0.29866]
[1735364994718,1.57839403,3353.9,3353.3,1.4704]
[1735364995024,0.29866,3353.4,3353.3,1.4704]
[1735365001438,0.29866,3353.4,3353.3,0.7472]
[1735365004735,0.29866,3353.4,3353.3,1.79217]
[1735365005041,0.29866,3353.4,3353.3,1.4935]
[1735365005742,1.04722115,3353.4,3353.3,1.4935]
[1735365006542,1.04722115,3353.4,3353.3,0.7472]
[1735365012042,1.04722115,3353.4,3353.3,1.04587]
[1735365013148,1.04722115,3353.4,3353.3,0.7472]
[1735365014941,0.29867,3353.3,3353.2,3.2078]
[1735365015144,1.07797,3353.3,3353.2,3.2078]
[1735365019550,4.73566115,3353.3,3352.5,7.87258575]
[1735365019756,1.04729115,3352.6,3352.5,8.60418575]
[1735365020053,1.04729115,3352.6,3352.5,4.23814]
[1735365020850,0.74856115,3352.6,3352.5,4.23814]
[1735365021856,1.04729115,3352.6,3352.5,3.9394]
[1735365027661,1.8811517,3352.6,3352.5,3.2078]
[1735365034857,0.29875,3352.4,3352.3,0.7482]
[1735365042573,1.05685,3352.4,3352.3,0.7482]
[1735365042772,0.29876,3352.3,3352.2,8.32598957]
[1735365042973,1.8811817,3352.3,3352.2,3.66120382]
[1735365043274,2.6668817,3352.3,3352.2,3.2078]
[1735365046681,1.8811817,3352.3,3352.2,3.2078]
[1735365049783,1.04796153,3352.3,3352.2,3.2078]
[1735365057287,0.29879,3352.0,3351.9,0.7275]
[1735365057589,1.04799153,3352.0,3351.9,3.9353]
[1735365057791,1.04799153,3352.0,3351.9,8.60008575]
[1735365058992,1.04799153,3352.0,3351.9,3.9353]
[1735365060088,1.04799153,3352.0,3351.9,8.60008575]
[1735365060593,1.80409153,3352.0,3351.9,8.60008575]
[1735365063198,1.80409153,3352.0,3351.9,10.56432284]
[1735365064799,1.80409153,3352.0,3351.9,7.35652284]
[1735365065097,1.80409153,3352.0,3351.9,10.56432284]
[1735365066496,2.55329306,3352.0,3351.9,10.56432284]
[1735365067194,1.80409153,3352.0,3351.9,10.56432284]
[1735365067699,1.80409153,3352.0,3351.9,17.57140406]
[1735365072097,3.2078,3353.2,3351.9,29.44860559]
[1735365072300,0.74920153,3352.7,3352.6,0.29873]
[1735365072502,0.74920153,3352.7,3352.6,2.59233]
[1735365072703,0.74920153,3352.7,3352.6,9.59941122]
[1735365073190,0.785,3353.6,3352.6,14.24368122]
[1735365073395,0.74920153,3353.1,3353.0,0.2987]
[1735365073597,0.74920153,3353.4,3353.3,0.29867]
[1735365073893,0.74920153,3353.4,3353.3,3.50647]
[1735365074695,0.74920153,3353.4,3353.3,4.99837]
[1735365075097,0.74920153,3353.4,3353.3,18.64561173]
[1735365075701,1.58132065,3353.6,3353.3,18.34694173]
[1735365076001,1.58132065,3353.6,3353.4,0.29866]
[1735365076305,1.58132065,3353.6,3353.5,0.29865]
[1735365077496,1.58132065,3353.6,3353.4,0.29866]
[1735365077804,1.87997065,3353.6,3353.4,0.29866]
[1735365078000,1.87997065,3353.6,3353.3,9.3762429]
[1735365078001,1.58132065,3353.6,3353.3,9.3762429]
[1735365078303,0.29866,3353.4,3353.3,3.9761]
[1735365078502,0.29866,3353.4,3353.3,3.2078]
[1735365080906,0.29869,3353.2,3352.9,0.7284]
[1735365081198,1.58132065,3353.0,3352.9,0.7284]
[1735365081405,1.58132065,3353.0,3352.9,1.02711]
[1735365082007,1.58132065,3353.3,3353.2,0.29868]
[1735365083010,1.58132065,3353.3,3353.1,3.2078]
[1735365083310,0.29868,3353.2,3353.1,3.2078]
[1735365083510,1.87999065,3353.3,3353.1,3.2078]
[1735365083810,0.29868,3353.2,3353.1,3.2078]
[1735365087311,1.02878,3353.2,3353.1,3.2078]
[1735365087708,0.29873,3352.7,3352.5,3.50654]
[1735365087902,0.29873,3352.6,3352.5,3.2078]
[1735365088408,1.03083,3352.6,3352.5,3.2078]
[1735365089510,0.29875,3352.5,3352.2,1.83806]
[1735365089711,1.88008065,3352.4,3352.2,0.765]
[1735365089907,0.29876,3352.3,3352.2,0.765]
[1735365090912,0.29877,3352.2,3352.0,3.2078]
[1735365091110,0.29877,3352.2,3352.0,3.50658]
[1735365091818,0.29877,3352.3,3352.0,3.50658]
[1735365093622,2.65458065,3352.4,3352.1,0.29877]
[1735365093918,0.29876,3352.3,3352.1,0.29877]
[1735365095120,2.35582065,3352.4,3352.1,0.29877]
[1735365095323,2.65458065,3352.4,3352.1,0.29877]
[1735365095918,0.29876,3352.3,3352.1,0.29877]
[1735365097620,0.29877,3352.2,3352.0,3.50659]
[1735365098621,1.58132065,3352.1,3352.0,3.50659]
[1735365098818,1.58132065,3352.1,3352.0,3.2078]
[1735365099120,1.58132065,3352.1,3351.6,4.6765429]
[1735365099121,0.29881,3351.7,3351.6,4.6765429]
[1735365099326,1.88013065,3351.7,3351.6,4.6765429]
[1735365100025,0.29884,3351.5,3351.2,1.80536]
[1735365100223,1.58132065,3351.4,3351.2,1.80536]
[1735365101523,1.58132065,3351.4,3351.3,0.29885]
[1735365101722,1.58132065,3351.4,3351.2,5.01315]
[1735365102721,1.88017065,3351.4,3351.2,4.7143]
[1735365102924,0.29885,3351.3,3351.2,3.943]
[1735365103725,1.05045,3351.3,3351.2,3.943]
[1735365105427,1.05045,3351.3,3351.2,3.2078]
[1735365105624,1.78965,3351.3,3351.2,3.2078]
[1735365110329,0.7516,3351.3,3351.2,3.2078]
[1735365111030,1.05045,3351.3,3351.2,3.2078]
[1735365111535,0.7516,3351.3,3351.2,3.2078]
[1735365111738,1.05045,3351.3,3351.2,3.2078]
[1735365119540,0.7516,3351.3,3350.9,0.7413]
[1735365119744,1.58132065,3351.0,3350.9,0.7413]
[1735365122936,1.88020065,3351.0,3350.9,0.7413]
[1735365123441,1.58132065,3351.0,3350.9,0.7413]
[1735365125241,1.88020065,3351.0,3350.9,0.7413]
[1735365125838,1.7984188,3351.0,3350.9,0.7413]
[1735365127841,0.29889,3350.9,3350.7,4.2994]
[1735365128040,0.7497694,3350.8,3350.7,4.7884]
[1735365129345,1.0486594,3350.8,3350.7,4.7884]
[1735365132050,1.0486594,3350.8,3350.7,1.5806]
[1735365133250,0.7497694,3350.8,3350.3,4.6765429]
[1735365133440,1.0486994,3350.4,3350.3,5.4257429]
[1735365133639,1.88344546,3350.4,3350.3,0.7492]
[1735365143555,1.58451546,3350.4,3350.1,0.29895]
[1735365143759,1.58451546,3350.4,3350.0,4.6765429]
[1735365143954,1.88347546,3350.1,3350.0,4.6765429]
[1735365144456,0.29897,3350.0,3349.9,4.6765429]
[1735365144652,1.09967,3350.0,3349.9,4.6765429]
[1735365147056,0.29897,3349.9,3349.8,3.2078]
[1735365147654,0.29898,3349.8,3349.7,4.6765429]
[1735365147855,0.299,3349.6,3349.5,4.6765429]
[1735365149164,0.299,3349.6,3349.2,3.2078]
[1735365149459,0.29902,3349.4,3349.2,3.2078]
[1735365149667,0.7376,3349.3,3349.2,3.2078]
[1735365149967,2.62114546,3349.3,3349.2,3.2078]
[1735365153659,2.61819772,3349.3,3349.2,3.2078]
[1735365156565,2.31916772,3349.3,3348.7,0.29908]
[1735365156771,0.29906,3348.9,3348.8,3.2078]
[1735365157069,0.29906,3349.0,3348.8,3.2078]
[1735365157470,0.29906,3348.9,3348.8,3.2078]
[1735365158370,3.94245226,3349.3,3348.8,3.2078]
[1735365158566,1.88357546,3348.9,3348.8,3.2078]
[1735365158772,0.29906,3348.9,3348.8,3.2078]
[1735365159166,1.88357546,3348.9,3348.8,3.2078]
[1735365159768,1.04989145,3348.9,3348.8,3.2078]
[1735365160265,0.767,3349.2,3348.8,3.2078]
[1735365160571,3.94245226,3349.3,3349.1,0.29904]
[1735365160769,3.94245226,3349.3,3349.2,0.7652]
[1735365160969,4.69328371,3349.3,3349.2,0.7652]
[1735365161773,5.82703358,3349.3,3349.2,0.7652]
[1735365162271,4.79335132,3349.3,3349.2,0.7652]
[1735365162665,1.58555132,3349.3,3349.2,0.7652]
[1735365162873,1.88458132,3349.3,3349.2,0.7652]
[1735365165278,1.58555132,3349.3,3349.2,0.7652]
[1735365165676,1.88458132,3349.3,3349.2,0.7652]
[1735365165876,1.58555132,3349.3,3349.2,0.7652]
[1735365166378,1.58555132,3349.3,3349.2,1.06424]
[1735365166674,1.58555132,3349.3,3349.2,0.7652]
[1735365167574,1.58555132,3349.3,3349.2,1.06424]
[1735365179883,1.88458132,3349.3,3349.2,0.7652]
[1735365181485,0.29904,3349.2,3348.9,0.29906]
[1735365181681,1.50128202,3349.0,3348.9,0.29906]
[1735365182588,0.75064101,3349.0,3348.9,0.29906]
[1735365183785,1.88476459,3349.0,3348.9,0.29906]
[1735365183985,1.88476459,3349.0,3348.8,4.29377]
[1735365184185,0.29906,3348.9,3348.8,3.9947]
[1735365184689,0.29906,3348.9,3348.8,4.29377]
[1735365184887,1.88477459,3349.0,3348.9,0.29906]
[1735365185387,0.29906,3348.9,3348.8,4.29377]
[1735365185888,0.29906,3348.9,3348.8,3.9947]
[1735365187090,0.29907,3348.8,3348.7,4.6765429]
[1735365187590,0.29907,3348.8,3348.6,5.7484329]
[1735365187788,1.58571459,3348.7,3348.6,5.7484329]
[1735365187988,1.88479459,3348.7,3348.6,5.4493429]
[1735365188189,2.34581459,3348.7,3348.6,5.7484329]
[1735365188793,2.34581459,3348.7,3348.6,1.07189]
[1735365189688,2.64489459,3348.7,3348.6,0.7728]
[1735365189891,0.29909,3348.6,3348.5,4.6765429]
[1735365190092,2.64490459,3348.7,3348.5,4.9756429]
[1735365191791,2.34581459,3348.7,3348.5,4.9756429]
[1735365193298,2.34581459,3348.7,3348.6,0.29909]
[1735365193501,2.34581459,3348.7,3348.5,4.6765429]
[1735365193697,2.64489459,3348.7,3348.5,4.9756429]
[1735365193899,2.34581459,3348.7,3348.5,4.9756429]
[1735365194194,2.64489459,3348.7,3348.5,4.9756429]
[1735365194700,2.34581459,3348.7,3348.5,4.9756429]
[1735365194903,2.64489459,3348.7,3348.5,4.9756429]
[1735365195703,2.64489459,3348.7,3348.5,4.6765429]
[1735365196401,2.34581459,3348.7,3348.5,4.9756429]
[1735365196597,2.64489459,3348.7,3348.5,4.9756429]
[1735365197303,2.64489459,3348.7,3348.6,4.6765429]
[1735365197491,2.34581459,3348.7,3348.6,4.6765429]
[1735365198401,2.34581459,3348.7,3348.5,0.2991]
[1735365198402,2.64489459,3348.7,3348.5,4.9756429]
[1735365199902,1.58571459,3348.7,3348.6,0.29909]
[1735365200105,1.58571459,3349.0,3348.5,4.6765429]
[1735365200300,5.09254459,3349.3,3348.5,5.4242929]
[1735365200602,5.09254459,3349.3,3349.0,0.29905]
[1735365200804,5.09254459,3349.3,3349.1,1.5723]
[1735365201100,4.79351459,3349.3,3349.1,1.5723]
[1735365201301,4.79351459,3349.3,3349.1,1.87134]
[1735365202201,5.09254459,3349.3,3349.1,1.5723]
[1735365202807,4.79351459,3349.3,3349.1,1.87135]
[1735365203299,1.58571459,3349.3,3349.1,1.5723]
[1735365203498,2.99985049,3350.1,3349.1,1.5723]
[1735365203499,3.2078,3350.3,3349.1,12.26291]
[1735365203710,0.29896,3350.1,3349.8,0.29898]
[1735365203898,0.75014853,3349.9,3349.7,0.29899]
[1735365204297,0.75014853,3349.9,3349.7,4.6765429]
[1735365204499,0.75014853,3349.9,3349.8,0.29898]
[1735365204800,0.75014853,3349.9,3349.7,4.9755329]
[1735365205510,0.75014853,3349.9,3349.8,0.29898]
[1735365205800,3.50674,3350.3,3350.0,0.29896]
[1735365206001,1.58474543,3350.0,3349.9,0.29897]
[1735365207501,4.79254543,3350.3,3349.7,4.6765429]
[1735365207701,5.09148543,3350.3,3350.0,0.29896]
[1735365210102,4.79254543,3350.3,3349.7,4.6765429]
[1735365210308,0.29895,3350.2,3349.9,0.29897]
[1735365211210,1.58474543,3350.0,3349.7,4.6765429]
[1735365211410,1.88371543,3350.0,3349.7,4.6765429]
[1735365211907,1.88371543,3350.0,3349.6,12.26021889]
[1735365211908,1.88371543,3350.0,3349.6,9.9185429]
[1735365212105,1.88373543,3349.7,3349.6,9.6195429]
[1735365212902,1.88373543,3349.7,3349.6,4.943]
[1735365213599,1.58474543,3349.7,3349.4,3.2078]
[1735365213805,0.29902,3349.4,3349.3,4.6765429]
[1735365214106,1.88376543,3349.4,3349.3,4.6765429]
[1735365214305,1.58474543,3349.4,3349.0,4.6765429]
[1735365214506,0.29905,3349.1,3349.0,4.6765429]
[1735365214707,1.88379543,3349.1,3349.0,4.6765429]
[1735365215811,1.88379543,3349.1,3348.5,0.29909]
[1735365215812,0.29907,3348.9,3348.5,4.9756329]
[1735365216107,1.58474543,3348.7,3348.5,4.9756329]
[1735365216307,1.58474543,3348.7,3348.5,4.6765429]
[1735365216906,1.58474543,3348.7,3348.6,0.29909]
[1735365217610,1.88382543,3348.7,3348.4,8.1834429]
[1735365219211,1.88382543,3348.7,3348.4,3.5069]
[1735365219611,1.58474543,3348.7,3348.4,3.5069]
[1735365220607,1.58474543,3348.7,3348.4,3.2078]
[1735365221007,1.88383543,3348.7,3348.4,3.5069]
[1735365221214,1.88383543,3348.7,3348.4,4.2416]
[1735365221813,1.58474543,3348.7,3348.5,0.2991]
[1735365223414,1.58474543,3348.7,3348.4,0.7347]
[1735365223714,2.67093543,3348.7,3348.4,1.03381]
[1735365224510,2.67093543,3348.7,3348.4,0.7347]
[1735365224711,2.37184543,3348.7,3348.4,0.7347]
[1735365224908,2.37184543,3348.7,3348.3,8.6717429]
[1735365225106,1.58474543,3348.4,3348.3,8.6717429]
[1735365226506,0.2991,3348.5,3348.3,8.9708629]
[1735365226711,2.62864543,3348.6,3348.3,8.6717429]
[1735365226911,2.62864543,3348.6,3348.4,0.29911]
[1735365227509,1.58474543,3348.6,3348.5,0.2991]
[1735365227813,1.88383543,3348.6,3348.4,0.2991]
[1735365228313,1.88383543,3348.6,3348.5,0.7869]
[1735365230414,0.2991,3348.5,3348.3,4.29431]
[1735365232012,0.2991,3348.5,3348.3,1.08651]
[1735365232212,0.2991,3348.5,3348.3,4.29431]
[1735365233215,2.32734543,3348.6,3348.3,3.9952]
[1735365233406,2.32734543,3348.6,3348.4,0.2991]
[1735365233611,0.2991,3348.5,3348.4,0.2991]
[1735365234019,0.2991,3348.5,3348.3,4.29431]
[1735365234521,1.58474543,3348.6,3348.3,4.29431]
[1735365234715,0.29911,3348.4,3348.3,3.9952]
[1735365234909,0.29911,3348.4,3348.3,4.29432]
[1735365235819,1.58474543,3348.6,3348.3,4.29432]
[1735365236019,0.2991,3348.5,3348.3,4.29432]
[1735365238020,0.765,3348.9,3348.3,3.9952]
[1735365238021,1.58474543,3348.9,3348.3,3.9952]
[1735365238228,3.2078,3349.1,3349.0,0.29905]
[1735365240025,3.2078,3349.1,3348.9,0.29906]
[1735365240325,3.2078,3349.1,3349.0,0.7266]
[1735365240519,1.88379543,3349.2,3349.0,1.4733]
[1735365240924,0.29905,3349.1,3349.0,0.7266]
[1735365241121,1.02165,3349.1,3349.0,0.7266]
[1735365246434,4.22945,3349.1,3349.0,0.7266]
[1735365248234,5.01265,3349.1,3349.0,0.7266]
[1735365249031,4.7136,3349.1,3348.6,0.7467]
[1735365249232,0.29908,3348.8,3348.6,1.5199]
[1735365251336,1.58474543,3348.9,3348.6,1.5199]
[1735365251337,0.29908,3348.7,3348.6,1.5199]
[1735365252040,0.29908,3348.7,3348.6,0.7732]
[1735365252240,0.29911,3348.5,3348.3,8.6458429]
[1735365252436,0.29911,3348.5,3348.3,9.6913529]
[1735365252941,0.29911,3348.5,3348.3,5.01481]
[1735365254032,0.29911,3348.5,3348.3,4.7157]
[1735365254433,1.58474543,3348.6,3348.3,4.7157]
[1735365254744,1.58474543,3348.6,3348.3,5.01481]
[1735365254938,0.2991,3348.5,3348.3,5.01481]
[1735365255238,0.2991,3348.5,3348.3,9.6913529]
[1735365255443,1.58474543,3348.6,3348.3,9.3922429]
[1735365255632,0.29911,3348.4,3348.3,9.3922429]
[1735365255834,0.29911,3348.4,3348.3,4.7157]
[1735365257943,0.29911,3348.4,3348.3,9.3922429]
[1735365258647,0.29911,3348.4,3348.3,7.8843429]
[1735365258941,1.03341,3348.4,3348.3,9.81783432]
[1735365260143,1.03341,3348.4,3348.3,3.2078]
[1735365260942,0.7343,3348.4,3348.1,4.70645425]
[1735365261135,1.88387543,3348.2,3348.1,4.70645425]